bitfinex-derivatives/quotes_ETHF0:USTF0_20260314
["timestamp","ask_amount","ask_price","bid_price","bid_amount"]
[1773448860442,0.00520258,2089.7,2089.1,0.98392167]
[1773448861137,0.00520258,2089.7,2088.7,0.245201]
[1773448861138,0.00520258,2089.7,2089.3,0.98392167]
[1773448861444,0.96094844,2090.1,2089.3,0.98392167]
[1773448862339,0.96618223,2090.1,2089.5,0.98392167]
[1773448862544,0.95660646,2089.7,2088.8,0.98392167]
[1773448862844,1.74340199,2089.8,2088.8,0.98392167]
[1773448862845,0.95660646,2089.5,2088.8,0.98392167]
[1773448865239,0.95660646,2089.5,2088.9,0.98392167]
[1773448865439,0.939832,2089.6,2089.1,0.98392167]
[1773448872553,0.90173621,2089.8,2089.1,0.98392167]
[1773448873956,0.88920711,2089.7,2089.1,0.98392167]
[1773448880356,0.84946777,2089.6,2089.1,0.98392167]
[1773448881250,0.84946777,2089.6,2088.7,0.005861]
[1773448881251,0.84364821,2089.1,2088.7,0.005861]
[1773448887167,0.84364821,2089.1,2088.4,1.0053651]
[1773448888270,0.84364821,2089.1,2088.4,1.00987601]
[1773448893571,0.7602135,2088.9,2088.4,1.00987601]
[1773448895272,6.76867549,2089.2,2088.4,1.00987601]
[1773448895467,7.00795549,2089.2,2088.4,1.00987601]
[1773448895673,0.23928,2089.2,2088.4,1.00987601]
[1773448895869,6.266,2089.1,2088.4,1.00987601]
[1773448896073,6.39165921,2089.1,2088.4,1.00987601]
[1773448898077,0.12157121,2089.0,2088.4,1.00987601]
[1773448904377,6.266,2089.1,2088.4,1.00987601]
[1773448904680,6.36974918,2089.1,2088.4,1.00987601]
[1773448904981,0.10374918,2089.0,2088.4,1.00987601]
[1773448906079,0.09384143,2088.8,2088.4,0.00451091]
[1773448906383,0.23934,2088.7,2088.2,0.96389431]
[1773448906680,0.08814725,2088.6,2087.9,0.94179581]
[1773448907477,0.09222859,2088.6,2087.9,0.94525866]
[1773448910584,0.00408134,2088.6,2087.9,0.94525866]
[1773448910985,0.9658622,2088.6,2087.9,0.94525866]
[1773448917189,3.98196528,2089.1,2087.9,0.94525866]
[1773448917190,0.96178086,2089.0,2087.9,0.94525866]
[1773448917388,0.48306888,2089.3,2087.9,0.94525866]
[1773448917389,0.96178086,2088.8,2087.9,0.94525866]
[1773448917985,0.96178086,2088.6,2087.9,0.94525866]
[1773448918288,0.96178086,2088.4,2087.9,0.00346285]
[1773448918482,0.96178086,2088.4,2087.8,0.95841365]
[1773448918685,0.23932,2089.0,2088.0,0.95841365]
[1773448918886,0.23932,2089.0,2088.2,0.95841365]
[1773448919478,0.96178086,2089.1,2088.2,0.95841365]
[1773448919685,0.96666316,2089.1,2088.2,0.96336008]
[1773448921485,0.0048823,2089.1,2088.2,0.96336008]
[1773448921689,0.96178086,2089.5,2088.7,0.95841365]
[1773448922887,0.96178086,2089.3,2088.7,0.95841365]
[1773448923086,0.96178086,2089.3,2088.3,0.95841365]
[1773448929100,0.91650637,2089.3,2088.3,0.95841365]
[1773448931000,0.23926,2089.4,2088.3,0.95841365]
[1773448931192,1.14817706,2089.4,2088.3,0.95841365]
[1773448932299,0.9071287,2089.3,2088.3,0.95841365]
[1773448936604,0.89699741,2089.1,2088.3,0.95841365]
[1773448942805,0.87626541,2089.1,2088.3,0.95841365]
[1773448949802,0.83108923,2089.5,2088.5,1.50417202]
[1773448950008,0.00441414,2089.5,2088.6,0.96285953]
[1773448950509,0.00441414,2089.5,2088.7,0.96285953]
[1773448952507,6.15133759,2089.7,2088.7,0.96285953]
[1773448952508,5.91209759,2089.7,2088.7,0.96285953]
[1773448952802,0.84462255,2090.0,2089.1,0.96285953]
[1773448953704,0.84886882,2090.0,2089.1,0.96285953]
[1773448953911,0.84886882,2090.0,2089.2,0.96285953]
[1773448964310,0.2392,2089.9,2089.2,0.96285953]
[1773448964515,0.95908142,2089.8,2089.2,0.96285953]
[1773448966818,1.03525535,2089.6,2088.9,1.07469203]
[1773448967015,1.03525535,2089.4,2088.7,1.07469203]
[1773448973920,1.74204948,2089.7,2088.7,1.07469203]
[1773448973921,1.33161285,2089.7,2088.7,1.07469203]
[1773448986326,1.33161285,2089.7,2088.8,1.05926616]
[1773448990428,1.09238285,2089.4,2088.8,1.05926616]
[1773448994128,1.09238285,2089.2,2088.6,15.03526616]
[1773448994630,1.09238285,2089.2,2088.7,1.05926616]
[1773448997332,1.09238285,2089.2,2088.6,1.05926616]
[1773448997527,1.09238285,2089.2,2088.3,1.50281948]
[1773448997528,1.09238285,2089.2,2088.5,1.05926616]
[1773449000838,1.74208948,2089.3,2088.4,1.05926616]
[1773449000839,1.08647375,2089.0,2088.4,1.05926616]
[1773449001938,0.2393,2089.1,2088.4,1.05926616]
[1773449002138,1.25003097,2089.1,2088.4,1.05926616]
[1773449005954,0.2393,2089.1,2088.4,1.05926616]
[1773449006454,1.25003097,2089.1,2088.4,1.05926616]
[1773449010054,1.01073097,2089.0,2088.4,1.05926616]
[1773449010755,1.01073097,2089.0,2088.3,0.94616414]
[1773449012352,1.01073097,2088.8,2088.3,0.94616414]
[1773449014755,1.25005097,2088.9,2088.3,0.94616414]
[1773449019254,1.25005097,2088.9,2087.4,13.77257147]
[1773449019255,5.89056,2087.8,2086.9,28.59992819]
[1773449019458,9.70184859,2089.0,2086.1,2.7684861]
[1773449019459,3.00563896,2087.0,2086.1,2.7684861]
[1773449019765,5.89249,2087.1,2084.9,0.98576863]
[1773449019766,5.49687375,2086.2,2084.9,0.98576863]
[1773449020054,1.01073097,2085.7,2085.3,0.5743642]
[1773449020259,0.23971,2085.5,2083.7,2.38955009]
[1773449020449,0.80325113,2085.6,2083.8,82.61316893]
[1773449020450,0.80325113,2085.0,2083.8,82.61316893]
[1773449020653,0.80325113,2084.8,2083.8,40.58017864]
[1773449020852,0.80325113,2084.6,2083.7,0.87971816]
[1773449021054,0.80325113,2084.4,2083.7,40.58017864]
[1773449021249,9.2999332,2084.5,2083.7,40.58017864]
[1773449021250,1.01073097,2084.2,2083.7,40.58017864]
[1773449021559,1.01073097,2084.0,2083.1,1.24929886]
[1773449021859,7.55028127,2083.9,2083.1,1.24929886]
[1773449022066,1.01073097,2084.0,2083.1,1.24929886]
[1773449022254,1.01073097,2084.0,2083.0,40.58017864]
[1773449022255,7.55720081,2083.9,2083.4,1.3820996]
[1773449022463,8.56793178,2083.9,2083.4,1.38676186]
[1773449022762,7.55756344,2083.8,2083.5,23.94560002]
[1773449023060,8.56829441,2083.7,2083.5,40.58017864]
[1773449023255,7.55756344,2083.6,2083.1,4.22298666]
[1773449023456,7.55756344,2083.5,2082.8,4.32266675]
[1773449023654,7.55756344,2083.4,2082.2,4.32266675]
[1773449023859,5.36073832,2083.3,2083.2,4.32266675]
[1773449024059,0.23991,2083.8,2083.2,4.32266675]
[1773449024255,1.25064097,2083.8,2083.3,38.99853792]
[1773449024457,1.01073097,2084.0,2083.3,3.4581334]
[1773449024656,1.01073097,2084.1,2083.5,3.43808462]
[1773449024862,1.01073097,2084.1,2083.4,35.54040452]
[1773449025057,1.01073097,2084.1,2083.4,38.97848914]
[1773449025564,1.01073097,2084.1,2083.4,35.54040452]
[1773449025861,1.01073097,2084.1,2083.4,39.75238834]
[1773449027664,1.01073097,2084.1,2083.5,4.21198382]
[1773449030167,2.47666708,2084.2,2083.7,4.21198382]
[1773449030568,2.47666708,2084.2,2083.8,28.15758384]
[1773449030765,2.47666708,2084.2,2083.8,4.21198382]
[1773449031169,2.47666708,2084.2,2083.8,28.15758384]
[1773449031863,0.00547647,2084.2,2083.9,39.68945882]
[1773449032070,0.00547647,2084.2,2084.0,23.94560002]
[1773449032271,2.59106517,2084.2,2084.0,22.54996476]
[1773449032570,6.273,2084.5,2084.1,26.96275711]
[1773449032765,6.273,2084.5,2084.1,4.41279235]
[1773449032966,6.91499998,2084.5,2084.1,39.31119689]
[1773449033167,6.273,2084.5,2084.2,26.69901906]
[1773449033367,6.27666735,2084.5,2084.2,4.1490543]
[1773449033562,1.0148646,2084.8,2084.4,20.97341212]
[1773449033766,6.273,2084.7,2084.3,4.98857946]
[1773449034068,6.273,2084.7,2084.4,4.54523579]
[1773449034269,6.273,2084.7,2084.5,4.98857946]
[1773449034469,6.35353031,2084.7,2084.5,4.98857946]
[1773449034669,6.35953131,2084.7,2084.6,17.6019561]
[1773449034870,6.279001,2084.7,2084.0,4.55883441]
[1773449035071,0.13594286,2084.6,2084.0,4.55883441]
[1773449035773,0.13594286,2084.6,2084.0,22.16079051]
[1773449035971,7.69194724,2084.6,2084.0,22.16079051]
[1773449036164,0.30782823,2084.4,2084.0,22.16277451]
[1773449036371,0.30782823,2084.4,2084.1,35.48359561]
[1773449036573,0.30782823,2084.4,2084.2,17.6019561]
[1773449036874,0.30782823,2084.4,2084.1,35.48359561]
[1773449037066,0.30782823,2084.4,2084.3,13.78289858]
[1773449037263,0.30292928,2084.5,2084.3,13.78289858]
[1773449037472,0.30292928,2084.5,2084.0,4.56081841]
[1773449037770,0.30292928,2084.5,2084.2,49.26649419]
[1773449037970,0.30292928,2084.5,2084.2,34.92828522]
[1773449038172,7.55604063,2084.5,2084.2,34.92828522]
[1773449038363,0.15504018,2084.3,2084.2,34.92828522]
[1773449038564,10.12806075,2084.7,2084.3,4.75059501]
[1773449038766,7.55587751,2084.6,2084.3,4.75059501]
[1773449039074,7.55587751,2084.6,2084.5,11.20490858]
[1773449039275,2.92470053,2084.6,2084.4,4.75059501]
[1773449039474,2.92470053,2084.6,2084.5,11.20490858]
[1773449040377,2.92470053,2084.6,2084.5,3.1189986]
[1773449040564,2.92470053,2084.6,2084.2,4.74330321]
[1773449040767,2.92470053,2084.6,2084.3,39.62122189]
[1773449040970,2.92470053,2084.6,2084.3,4.69293667]
[1773449041265,6.64606553,2084.7,2084.3,4.69293667]
[1773449041470,6.64606553,2084.7,2084.4,34.92828522]
[1773449041670,6.51640473,2084.7,2084.4,39.61511937]
[1773449042176,10.36646448,2084.7,2084.4,39.61511937]
[1773449042674,11.93329224,2084.7,2084.4,39.61511937]
[1773449042874,10.36646448,2084.7,2084.4,39.61511937]
[1773449043275,3.85005975,2084.6,2084.4,34.57809726]
[1773449043876,10.36646448,2084.7,2084.4,34.57809726]
[1773449044071,3.85005975,2084.6,2084.4,34.57809726]
[1773449045173,3.85005975,2084.5,2084.4,27.0225641]
[1773449045477,9.03219451,2084.8,2084.4,27.0225641]
[1773449045478,5.53159567,2084.8,2084.5,4.1490543]
[1773449045673,6.78130508,2086.0,2084.5,4.1490543]
[1773449045674,11.44760104,2085.2,2084.5,4.1490543]
[1773449045876,4.22203429,2085.2,2084.7,4.1490543]
[1773449046481,4.22203429,2085.0,2084.5,4.1490543]
[1773449047583,4.22203429,2085.0,2084.5,4.15420098]
[1773449047881,4.46179429,2085.1,2084.7,4.1490543]
[1773449048083,7.22556675,2085.0,2084.6,22.33572995]
[1773449048276,13.73632675,2085.1,2084.7,4.1490543]
[1773449048675,13.73632675,2085.1,2084.9,4.1490543]
[1773449048883,13.73632675,2085.1,2084.9,4.3e-06]
[1773449049077,6.51076,2085.1,2084.7,4.1490543]
[1773449049380,4.22203429,2084.8,2084.7,19.83180995]
[1773449049682,4.22203429,2084.8,2084.7,12.22948894]
[1773449049876,4.22203429,2084.8,2084.5,1.95e-06]
[1773449050079,4.22203429,2084.8,2084.2,4.1490543]
[1773449050277,7.44691421,2084.9,2084.2,4.1490543]
[1773449050582,0.23976,2085.1,2084.3,4.1490543]
[1773449050583,13.95667421,2085.1,2084.3,4.1490543]
[1773449050883,6.50976,2085.1,2084.3,4.15489057]
[1773449051278,7.55368511,2085.0,2084.3,4.15489057]
[1773449051576,7.55368511,2084.9,2084.3,4.15489057]
[1773449051880,7.55368511,2084.8,2084.3,4.15489057]
[1773449052082,4.22203429,2084.6,2083.7,45.03253987]
[1773449052383,7.55368511,2084.5,2083.8,4.1490543]
[1773449052586,5.11052538,2084.4,2083.8,4.1490543]
[1773449052782,6.27,2084.6,2083.8,4.1490543]
[1773449053278,6.27,2084.6,2083.8,4.1544233]
[1773449053980,10.49203429,2084.6,2083.8,4.1544233]
[1773449054180,4.22203429,2084.5,2083.8,4.1544233]
[1773449054483,10.49203429,2084.6,2083.8,4.1544233]
[1773449055080,4.22203429,2084.5,2083.8,4.1544233]
[1773449055280,0.23981,2084.7,2083.8,4.1544233]
[1773449055475,4.22203429,2084.8,2083.9,14.644]
[1773449055683,6.27,2084.9,2084.0,4.1490543]
[1773449056189,4.22203429,2084.8,2084.0,4.1490543]
[1773449056485,6.27,2084.9,2084.0,4.1490543]
[1773449057282,4.22203429,2084.8,2084.0,4.1490543]
[1773449057479,4.22203429,2085.1,2084.0,4.1490543]
[1773449060191,4.22203429,2084.9,2084.0,4.1490543]
[1773449060989,6.83429687,2085.0,2084.0,4.1490543]
[1773449061191,6.59833568,2085.2,2084.0,4.1490543]
[1773449061391,12.86833568,2085.2,2084.0,4.1490543]
[1773449061693,6.59452687,2085.1,2084.0,4.1490543]
[1773449062485,6.83428687,2085.1,2084.0,4.1490543]
[1773449062690,6.83428687,2085.1,2083.8,6.91303061]
[1773449064791,6.59452687,2084.9,2083.8,6.91303061]
[1773449064990,6.59452687,2084.7,2083.8,6.91303061]
[1773449066289,6.59452687,2084.5,2083.8,6.91303061]
[1773449066484,6.59452687,2084.7,2083.8,6.91303061]
[1773449066693,5.9979992,2084.6,2083.8,6.91303061]
[1773449066997,6.59452687,2084.5,2083.8,6.91303061]
[1773449070595,12.50427066,2084.4,2083.8,6.91303061]
[1773449070791,6.59452687,2084.4,2083.8,6.91303061]
[1773449072195,6.59452687,2084.3,2083.8,6.91303061]
[1773449072690,6.59452687,2084.3,2083.8,0.005369]
[1773449073393,6.59452687,2084.3,2083.6,6.90766161]
[1773449073394,6.83438687,2084.3,2083.6,6.90766161]
[1773449073596,6.59452687,2084.1,2083.5,6.90766161]
[1773449074097,6.59452687,2083.9,2083.2,6.90766161]
[1773449074491,6.59452687,2083.9,2083.2,6.91354503]
[1773449076197,6.83444687,2083.7,2082.8,6.90766161]
[1773449076396,6.59452687,2083.5,2082.8,6.90766161]
[1773449076900,12.86552687,2083.4,2082.8,6.90766161]
[1773449077201,6.59452687,2083.3,2082.8,6.91316179]
[1773449078295,6.27574896,2083.4,2082.8,6.91316179]
[1773449078598,6.271,2083.3,2082.8,6.91316179]
[1773449078898,6.59452687,2083.5,2082.8,6.91316179]
[1773449078899,6.271,2083.5,2082.8,6.91316179]
[1773449079302,6.59452687,2083.7,2082.8,6.91316179]
[1773449079497,12.86552687,2083.6,2082.8,6.91316179]
[1773449079699,6.271,2083.5,2082.8,6.91316179]
[1773449079896,12.86552687,2083.5,2082.8,6.91316179]
[1773449080096,6.59452687,2083.4,2082.8,6.91316179]
[1773449081805,0.00470056,2083.6,2082.8,6.91316179]
[1773449082010,6.272,2083.5,2082.8,6.91316179]
[1773449082605,6.59452687,2083.4,2082.8,6.91316179]
[1773449083013,6.272,2083.5,2082.8,6.91316179]
[1773449083511,12.86652687,2083.5,2082.8,6.91316179]
[1773449084112,6.59452687,2083.5,2082.8,6.91316179]
[1773449084307,6.272,2083.4,2082.8,6.91316179]
[1773449085612,6.272,2083.5,2082.8,6.91316179]
[1773449087106,12.72231539,2083.5,2082.8,6.91316179]
[1773449090710,0.00470056,2083.6,2082.8,6.91316179]
[1773449090906,6.45501595,2083.6,2082.8,6.91316179]
[1773449093209,0.00470056,2083.6,2082.8,6.91316179]
[1773449094212,12.77695768,2083.6,2082.8,6.91316179]
[1773449094410,6.50025712,2083.5,2082.8,6.91316179]
[1773449095411,6.74019712,2083.5,2082.8,0.00550018]
[1773449095617,6.50025712,2083.3,2082.8,6.63596896]
[1773449096116,6.272,2083.4,2082.8,6.63596896]
[1773449096318,0.00470056,2083.6,2082.8,6.63596896]
[1773449096509,12.77695768,2083.6,2082.8,6.63596896]
[1773449097423,6.50025712,2083.5,2082.8,6.63596896]
[1773449100321,0.00470056,2083.6,2082.8,6.63596896]
[1773449100720,6.50495768,2083.6,2082.8,6.63596896]
[1773449101422,6.74489768,2083.6,2082.8,0.00550018]
[1773449101822,6.74489768,2083.6,2082.8,6.63596896]
[1773449102422,6.74489768,2083.6,2082.8,0.00550018]
[1773449103128,6.50025712,2083.4,2082.8,0.00550018]
[1773449103423,6.50025712,2083.2,2082.8,0.00550018]
[1773449104426,6.50025712,2083.2,2082.3,6.63046878]
[1773449105230,6.272,2083.3,2082.3,6.63046878]
[1773449105231,12.77225712,2083.5,2082.3,6.71401909]
[1773449105425,6.50025712,2083.4,2082.3,6.71787484]
[1773449106730,6.50025712,2083.4,2082.3,6.63432453]
[1773449109529,12.77325712,2083.3,2082.3,6.63432453]
[1773449109729,6.50025712,2083.2,2082.3,6.63432453]
[1773449114532,6.50025712,2083.4,2082.3,6.63432453]
[1773449114732,6.50495768,2083.6,2082.3,6.71787504]
[1773449121640,6.50495768,2083.6,2082.6,1.51238625]
[1773449121841,6.50495768,2083.6,2082.7,6.25101444]
[1773449122934,5.87180474,2083.3,2082.3,6.3384207]
[1773449123138,1.51238625,2083.4,2082.3,6.3384207]
[1773449123139,5.87180474,2083.1,2082.3,6.3384207]
[1773449123939,5.87180474,2083.1,2082.3,6.25487019]
[1773449124141,5.87180474,2083.0,2082.3,7.76725644]
[1773449131640,5.87180474,2083.4,2082.6,6.25101444]
[1773449131843,5.87180474,2083.4,2082.8,6.25101444]
[1773449140050,5.87180474,2083.4,2082.9,7.76340069]
[1773449140253,5.87180474,2084.0,2083.4,6.25101444]
[1773449140554,4.91190374,2084.3,2083.8,7.76340069]
[1773449141249,4.91669588,2084.3,2083.8,7.76926043]
[1773449141646,0.00479214,2084.3,2083.8,6.25687418]
[1773449141850,4.95165208,2084.5,2083.8,6.25687418]
[1773449142851,4.95781972,2084.5,2083.8,6.25687418]
[1773449145559,5.19764972,2084.5,2083.4,6.25101444]
[1773449146260,5.70783433,2084.3,2083.4,6.25101444]
[1773449146563,5.7019034,2083.9,2083.1,5.72424139]
[1773449146754,5.69789481,2083.8,2083.1,5.72424139]
[1773449146952,5.93777481,2084.0,2083.2,5.72424139]
[1773449147562,5.93777481,2084.0,2083.2,5.73032623]
[1773449147860,6.273,2084.3,2083.2,5.73032623]
[1773449148057,5.76997864,2084.2,2083.2,5.73032623]
[1773449151261,5.76997864,2084.2,2083.4,5.8348132]
[1773449152163,5.41673977,2084.4,2083.4,5.8348132]
[1773449155066,0.00616764,2084.5,2083.4,5.8348132]
[1773449155764,5.162291,2084.5,2083.4,5.8348132]
[1773449155958,5.162291,2084.5,2083.4,6.0747532]
[1773449156163,0.00616764,2084.5,2083.4,6.0747532]
[1773449156662,5.01102471,2084.5,2083.5,5.8348132]
[1773449160168,0.00616764,2084.5,2083.5,5.8348132]
[1773449160765,0.00616764,2084.5,2083.7,5.8348132]
[1773449161167,4.66508605,2084.8,2083.9,5.8348132]
[1773449161567,4.66198213,2084.9,2083.9,5.8348132]
[1773449162272,4.66633395,2084.9,2083.9,5.8348132]
[1773449165571,0.00435182,2084.9,2083.9,5.8348132]
[1773449165874,4.46148698,2084.9,2083.9,5.8348132]
[1773449171378,4.46148698,2084.9,2084.0,5.8348132]
[1773449173276,0.00435182,2084.9,2084.0,7.3453653]
[1773449173477,0.00435182,2084.9,2084.1,5.8348132]
[1773449173674,4.14006043,2084.9,2084.1,5.8348132]
[1773449175874,0.00435182,2084.9,2084.1,13.37461127]
[1773449176074,0.00435182,2084.9,2084.2,5.8348132]
[1773449176881,0.23971,2085.6,2084.4,5.8348132]
[1773449177080,3.91793026,2085.5,2084.4,5.8348132]
[1773449177285,3.91793026,2085.5,2084.5,5.8348132]
[1773449177886,3.92250533,2085.5,2084.5,5.8348132]
[1773449180493,3.92250533,2085.5,2084.6,5.8348132]
[1773449180688,0.23965,2086.1,2084.6,13.37461127]
[1773449180988,3.71022516,2086.0,2084.8,5.8348132]
[1773449181794,3.71614209,2086.0,2084.8,5.83875794]
[1773449182091,3.71614209,2086.0,2084.9,5.24454944]
[1773449182890,3.71614209,2086.0,2085.1,5.24454944]
[1773449183286,3.71614209,2086.0,2085.3,5.24454944]
[1773449183888,3.09137139,2086.2,2085.3,5.24454944]
[1773449184592,3.03785799,2086.3,2085.3,5.24454944]
[1773449184794,3.03785799,2085.9,2085.3,5.24454944]
[1773449184993,3.03785799,2085.9,2085.2,15.148]
[1773449185292,3.03785799,2085.9,2085.2,20.39254944]
[1773449185497,2.96161152,2085.7,2084.8,20.40149418]
[1773449185791,6.274,2086.1,2084.8,20.40149418]
[1773449185792,2.96161152,2085.5,2084.8,20.40149418]
[1773449188898,0.2397,2085.6,2084.2,5.24454944]
[1773449188899,2.76445608,2084.9,2084.2,5.24454944]
[1773449189594,2.76445608,2084.9,2084.0,5.24454944]
[1773449189996,2.76445608,2084.9,2084.0,5.2496141]
[1773449191098,2.76445608,2084.9,2084.0,0.00506466]
[1773449191292,6.274,2085.3,2084.0,0.00506466]
[1773449191293,2.63412986,2084.5,2084.0,0.00506466]
[1773449191597,2.63968379,2084.5,2084.0,0.00506466]
[1773449192199,2.63968379,2084.5,2083.7,5.24454944]
[1773449193198,2.63968379,2084.5,2083.7,5.24860495]
[1773449193891,2.63968379,2084.5,2083.7,0.00405551]
[1773449194195,2.63968379,2084.5,2083.5,5.24454944]
[1773449194597,2.34642569,2084.3,2083.1,5.24454944]
[1773449195195,2.34642569,2084.3,2083.1,5.24855688]
[1773449197298,2.20245069,2084.5,2083.1,5.24855688]
[1773449197492,0.00555393,2084.5,2083.2,5.24454944]
[1773449197693,0.00555393,2084.5,2083.2,12.78434751]
[1773449197998,0.00555393,2084.5,2083.4,5.24454944]
[1773449198199,0.00555393,2084.5,2083.6,5.24454944]
[1773449199294,2.06328975,2085.2,2083.6,5.24454944]
[1773449199490,2.06328975,2085.2,2083.8,5.24454944]
[1773449200092,2.06328975,2085.2,2084.0,5.24454944]
[1773449200298,2.06848658,2085.2,2084.2,5.24454944]
[1773449200996,2.06848658,2085.2,2084.0,5.24454944]
[1773449201695,1.98067244,2085.0,2083.5,5.24454944]
[1773449201900,1.98067244,2085.0,2083.4,7.53979807]
[1773449201901,1.98067244,2085.0,2083.7,5.24454944]
[1773449202400,1.98067244,2085.0,2083.9,5.24454944]
[1773449206303,1.98067244,2085.0,2084.1,4.65784536]
[1773449208303,1.67279032,2085.2,2084.1,4.65784536]
[1773449213803,1.61364456,2085.0,2084.1,4.65784536]
[1773449217508,0.00519683,2085.2,2084.1,4.65784536]
[1773449217703,1.4574737,2085.2,2084.1,4.65784536]
[1773449217910,1.4574737,2085.2,2084.2,4.4216215]
[1773449218409,1.4574737,2085.2,2084.2,11.96141957]
[1773449218608,1.4574737,2085.2,2084.3,4.4216215]
[1773449218809,1.4574737,2085.2,2084.5,4.4216215]
[1773449219905,0.00519683,2085.2,2084.5,4.4216215]
[1773449220806,1.36491536,2085.7,2084.5,4.4216215]
[1773449221012,1.36491536,2085.7,2084.6,4.4216215]
[1773449221303,1.60460536,2085.7,2084.6,4.4216215]
[1773449221705,1.61054552,2085.7,2084.6,4.4255987]
[1773449221899,1.33690961,2085.2,2084.6,0.0039772]
[1773449222102,0.23976,2085.1,2084.4,4.4216215]
[1773449222306,1.30117442,2085.0,2084.2,4.4216215]
[1773449223006,0.23976,2085.1,2083.5,12.40469347]
[1773449223007,1.28993726,2084.6,2083.9,4.4216215]
[1773449223197,1.28993726,2084.6,2083.6,4.4216215]
[1773449223397,1.28993726,2084.6,2083.6,45.2216215]
[1773449223603,1.28993726,2084.6,2083.7,4.4216215]
[1773449224004,1.28993726,2084.6,2083.7,4.4277059]
[1773449224207,1.23814391,2085.0,2083.7,4.4277059]
[1773449224406,1.21502479,2084.8,2083.7,4.4277059]
[1773449224811,1.21502479,2084.6,2083.7,4.4277059]
[1773449228113,1.13993558,2084.4,2083.7,4.4277059]
[1773449228814,1.34164128,2084.5,2083.7,4.4277059]
[1773449229211,0.23982,2084.5,2083.7,4.4277059]
[1773449229408,1.31960312,2084.5,2083.7,4.4277059]
[1773449229608,1.07978312,2084.5,2083.7,4.4277059]
[1773449229811,6.21657548,2085.1,2083.7,4.4277059]
[1773449229812,1.07978312,2084.3,2083.7,4.4277059]
[1773449230910,0.23984,2084.4,2083.7,4.4277059]
[1773449231317,0.97222752,2084.3,2083.7,4.4277059]
[1773449233218,1.21862491,2084.4,2083.7,4.4277059]
[1773449233410,1.21862491,2084.4,2083.7,0.0060844]
[1773449233616,0.95389998,2084.6,2083.7,4.4277059]
[1773449235916,5.63927209,2084.8,2083.7,4.4277059]
[1773449235917,0.90319778,2084.4,2083.7,4.4277059]
[1773449237518,0.23987,2084.1,2083.2,4.4216215]
[1773449237719,0.83626659,2084.0,2083.2,4.4216215]
[1773449238519,0.8404405,2084.0,2083.2,4.42736674]
[1773449242820,0.00417391,2084.0,2083.2,4.42736674]
[1773449243017,0.23982,2084.6,2083.2,4.42736674]
[1773449243221,0.54278814,2084.7,2083.2,4.66733674]
[1773449243621,0.54278814,2084.7,2083.3,3.9753429]
[1773449243824,0.54278814,2084.7,2083.4,3.9753429]
[1773449244526,0.54812458,2084.7,2083.4,3.9753429]
[1773449244726,0.00533644,2084.7,2083.4,3.9753429]
[1773449245126,0.45757014,2084.7,2083.5,3.97623763]
[1773449246530,0.45757014,2084.7,2083.6,3.9753429]
[1773449248028,0.00533644,2084.7,2083.8,3.9753429]
[1773449248227,0.42493699,2085.3,2084.0,3.9753429]
[1773449248527,0.42419044,2085.1,2084.1,3.9753429]
[1773449249121,0.42966202,2085.1,2084.1,3.9753429]
[1773449250332,0.00547158,2085.1,2084.1,3.9753429]
[1773449250734,0.2856347,2085.1,2084.1,3.9753429]
[1773449253334,0.18562131,2084.9,2084.1,3.9753429]
[1773449255935,0.34526472,2085.0,2084.1,3.9753429]
[1773449256133,0.23977,2085.0,2084.1,3.9753429]
[1773449256535,0.1109663,2085.1,2084.1,3.9753429]
[1773449257331,0.00547158,2085.1,2084.1,3.9753429]
[1773449257733,0.04780653,2085.1,2084.1,3.9753429]
[1773449260241,0.00547158,2085.1,2084.1,3.9753429]
[1773449263541,0.24524158,2085.1,2084.1,3.9753429]
[1773449263744,0.00547158,2085.1,2084.1,3.9753429]
[1773449267144,6.51147569,2085.5,2084.3,3.96823795]
[1773449267145,6.277,2085.5,2084.3,3.96823795]
[1773449268246,6.28176651,2085.5,2084.3,3.96823795]
[1773449268939,0.00476651,2085.5,2084.3,3.96823795]
[1773449269343,0.00476651,2085.5,2084.5,3.96340455]
[1773449277252,0.00476651,2085.5,2084.6,3.94455622]
[1773449279452,5.17974203,2086.3,2084.8,3.46972814]
[1773449279750,1.19177562,2086.4,2085.1,3.46972814]
[1773449279954,1.19177562,2086.4,2085.3,3.46972814]
[1773449280546,1.19749682,2086.4,2085.3,3.47380785]
[1773449284053,0.0057212,2086.4,2085.3,3.47380785]
[1773449284847,0.0057212,2086.4,2085.3,11.01360592]
[1773449285042,0.0057212,2086.4,2085.4,3.46972814]
[1773449285555,0.0057212,2086.4,2085.6,3.46972814]
[1773449285748,0.0057212,2086.4,2085.8,3.46972814]
[1773449286151,1.66618647,2086.7,2085.8,3.46972814]
[1773449286455,0.23958,2086.7,2085.8,3.46972814]
[1773449286754,1.60698815,2086.7,2085.8,3.46972814]
[1773449287251,1.61196592,2086.7,2085.8,3.46972814]
[1773449288052,1.37238592,2086.7,2085.8,3.46972814]
[1773449288254,0.00497777,2086.7,2085.8,3.46972814]
[1773449290862,1.20950464,2086.7,2085.8,3.46972814]
[1773449291956,0.00497777,2086.7,2085.8,3.46972814]
[1773449298262,1.01340725,2087.0,2085.8,3.46972814]
[1773449299274,1.019511,2087.0,2085.8,3.46972814]
[1773449299465,0.00610375,2087.0,2085.8,3.46972814]
[1773449300270,0.00610375,2087.0,2086.0,3.46972814]
[1773449300967,0.76487306,2087.4,2086.1,0.23964]
[1773449301166,0.76487306,2087.6,2086.2,3.38373348]
[1773449301466,0.76487306,2087.6,2086.4,3.38373348]
[1773449301773,0.23945,2087.8,2086.4,3.38373348]
[1773449301966,0.76044166,2087.7,2086.4,3.38373348]
[1773449305072,0.00367411,2087.8,2086.4,3.38373348]
[1773449305370,0.68303117,2087.8,2086.4,3.38373348]
[1773449306071,0.68303117,2087.8,2086.6,3.38373348]
[1773449307369,3.44222526,2087.7,2086.3,3.38373348]
[1773449307568,3.44222526,2087.2,2086.3,3.38373348]
[1773449308574,3.53573595,2087.0,2085.8,3.38373348]
[1773449315475,3.53573595,2087.0,2086.0,3.38373348]
[1773449316377,3.53573595,2087.0,2086.1,3.38373348]
[1773449322180,3.32088913,2087.2,2086.1,3.38373348]
[1773449322582,3.32088913,2087.2,2085.6,40.8]
[1773449322583,1.95178308,2086.4,2085.5,3.38373348]
[1773449322884,0.23959,2086.5,2085.0,3.38373348]
[1773449322885,1.95178308,2086.0,2085.0,3.38373348]
[1773449323081,1.95178308,2085.8,2085.0,3.38373348]
[1773449323882,1.95595019,2085.8,2085.0,3.38887937]
[1773449324575,1.95595019,2085.8,2085.0,0.00514589]
[1773449326387,1.95595019,2085.8,2085.0,3.12653602]
[1773449330097,0.00416711,2085.8,2085.0,3.12653602]
[1773449332094,1.85390841,2086.4,2085.1,2.37781559]
[1773449332398,1.85390841,2086.4,2085.2,3.2516097]
[1773449332593,1.8536049,2086.2,2085.2,3.2516097]
[1773449333298,1.85831232,2086.2,2085.2,3.2516097]
[1773449335299,1.76563572,2086.0,2085.2,3.2516097]
[1773449335496,1.76497914,2085.8,2085.0,0.00514589]
[1773449335803,1.76497914,2085.8,2085.0,3.25675559]
[1773449340105,1.66378179,2085.6,2084.7,3.2516097]